fUST/lending_fUST_20250630
["ID","MTS","AMOUNT","RATE_DAILY","PERIOD"]
[368589556,1751218234962,-460.0,0.00018367,2]
[368589557,1751218234971,-460.0,0.00018367,2]
[368589558,1751218234981,-460.0,0.00018367,2]
[368589559,1751218234991,-460.0,0.00018367,2]
[368589560,1751218235001,-500.0,0.00018367,2]
[368589561,1751218235010,-460.0,0.00018367,2]
[368589562,1751218235019,-460.0,0.00018367,2]
[368589563,1751218235029,-460.0,0.00018367,2]
[368589564,1751218235039,-460.0,0.00018367,2]
[368589565,1751218235048,-544.05,0.00018367,2]
[368589566,1751218235058,-460.0,0.00018367,2]
[368589567,1751218235067,-1948.78,0.00018367,2]
[368589568,1751218235077,-460.0,0.00018367,2]
[368589569,1751218235086,-460.0,0.00018367,2]
[368589570,1751218235096,-460.0,0.00018367,2]
[368589571,1751218235105,-775.45,0.00018367,2]
[368589572,1751218235115,-460.0,0.00018367,2]
[368589573,1751218235125,-441.68881488,0.00018367,2]
[368589574,1751218235134,-460.0,0.00018367,2]
[368589575,1751218235144,-460.0,0.00018367,2]
[368589576,1751218235153,-460.0,0.00018367,2]
[368589577,1751218235163,-460.0,0.00018367,2]
[368589578,1751218235173,-460.0,0.00018367,2]
[368589579,1751218235182,-601.63,0.00018367,2]
[368589580,1751218235192,-1353.47,0.00018367,2]
[368589581,1751218235202,-460.0,0.00018367,2]
[368589582,1751218235211,-460.0,0.00018367,2]
[368589583,1751218235221,-666.63,0.00018367,2]
[368589584,1751218235231,-460.0,0.00018367,2]
[368589585,1751218235240,-460.0,0.00018367,2]
[368589586,1751218235250,-660.18,0.00018367,2]
[368589587,1751218235259,-318.70914657,0.00018367,2]
[368589588,1751218235269,-377.72012903,0.00018367,2]
[368589589,1751218235278,-2286.49,0.00018367,2]
[368589590,1751218235288,-402.89091039,0.00018367,2]
[368589591,1751218235297,-671.44,0.00018367,2]
[368589592,1751218235307,-3666.93,0.00018367,2]
[368589593,1751218235316,-460.0,0.00018367,2]
[368589594,1751218235326,-1005.84,0.00018367,2]
[368589595,1751218235335,-813.16,0.00018367,2]
[368589596,1751218235344,-1258.74,0.00018367,2]
[368589597,1751218235354,-1014.82,0.00018367,2]
[368589598,1751218235363,-460.0,0.00018368,2]
[368589599,1751218235373,-460.0,0.00018368,2]
[368589600,1751218235382,-460.0,0.00018368,2]
[368589601,1751218235392,-460.0,0.00018368,2]
[368589602,1751218235401,-460.0,0.00018368,2]
[368589603,1751218235411,-460.0,0.00018368,2]
[368589604,1751218235421,-460.0,0.00018368,2]
[368589605,1751218235431,-413.87966159,0.00018368,2]
[368589606,1751218235441,-460.0,0.00018368,2]
[368589607,1751218235451,-460.0,0.00018368,2]
[368589608,1751218235460,-460.0,0.00018368,2]
[368589609,1751218235469,-460.0,0.00018368,2]
[368589610,1751218235479,-460.0,0.00018368,2]
[368589611,1751218235489,-460.0,0.00018368,2]
[368589612,1751218235498,-460.0,0.00018368,2]
[368589613,1751218235508,-460.0,0.00018368,2]
[368589614,1751218235517,-460.0,0.00018368,2]
[368589615,1751218235526,-460.0,0.00018368,2]
[368589616,1751218235535,-460.0,0.00018368,2]
[368589617,1751218235545,-533.24,0.00018368,2]
[368589618,1751218235554,-460.0,0.00018368,2]
[368589619,1751218235563,-460.0,0.00018368,2]
[368589620,1751218235572,-460.0,0.00018368,2]
[368589621,1751218235582,-460.0,0.00018368,2]
[368589622,1751218235591,-460.0,0.00018368,2]
[368589623,1751218235601,-460.0,0.00018368,2]
[368589624,1751218235610,-460.0,0.00018368,2]
[368589625,1751218235620,-460.0,0.00018368,2]
[368589626,1751218235634,-460.0,0.00018368,2]
[368589627,1751218235644,-460.0,0.00018368,2]
[368589628,1751218235654,-410.37461481,0.00018368,2]
[368589629,1751218235667,-56.41538519,0.00018368,2]
[368589630,1751218235678,-460.0,0.00018368,2]
[368589631,1751218235687,-451.86575385,0.00018368,2]
[368589634,1751218238554,-460.0,0.00018365,2]
[368589636,1751218238564,-460.0,0.00018366,2]
[368589637,1751218238573,-460.0,0.00018366,2]
[368589638,1751218238583,-1083.24,0.00018367,2]
[368589639,1751218238592,-10.75658888,0.00018368,2]
[368589640,1751218238602,-460.0,0.00018368,2]
[368589641,1751218238611,-460.0,0.00018368,2]
[368589642,1751218238621,-460.0,0.00018368,2]
[368589643,1751218238634,-358.39588459,0.00018368,2]
[368589644,1751218238644,-509.21,0.00018368,2]
[368589645,1751218238654,-460.0,0.00018368,2]
[368589646,1751218238664,-460.0,0.00018368,2]
[368589647,1751218238673,-460.0,0.00018368,2]
[368589648,1751218238683,-460.0,0.00018368,2]
[368589649,1751218238692,-460.0,0.00018368,2]
[368589650,1751218238701,-398.94467142,0.00018368,2]
[368589651,1751218238710,-460.0,0.00018368,2]
[368589652,1751218238720,-201.97,0.00018368,2]
[368589653,1751218238730,-467.29306496,0.00018368,2]
[368589654,1751218238740,-384.07784172,0.00018368,2]
[368589655,1751218238749,-467.35975145,0.00018368,2]
[368589656,1751218238758,-460.0,0.00018368,2]
[368589657,1751218238767,-460.0,0.00018368,2]
[368589658,1751218238776,-460.0,0.00018368,2]
[368589659,1751218238785,-460.0,0.00018368,2]
[368589660,1751218238795,-460.0,0.00018368,2]
[368589661,1751218238804,-460.0,0.00018368,2]
[368589662,1751218238814,-460.0,0.00018368,2]
[368589663,1751218238823,-460.0,0.00018368,2]
[368589664,1751218238832,-460.0,0.00018368,2]
[368589665,1751218238842,-500.0,0.00018368,2]
[368589666,1751218238852,-500.0,0.00018368,2]
[368589667,1751218238861,-500.0,0.00018368,2]
[368589668,1751218238870,-460.0,0.00018368,2]
[368589669,1751218238880,-460.0,0.00018369,2]
[368589671,1751218238890,-460.0,0.00018369,2]
[368589673,1751218238899,-460.0,0.00018369,2]
[368589674,1751218238908,-460.0,0.00018369,2]
[368589675,1751218238918,-460.0,0.00018369,2]
[368589676,1751218238927,-460.0,0.00018369,2]
[368589677,1751218238937,-379.45605945,0.00018369,2]
[368589678,1751218238946,-508.66445798,0.00018369,2]
[368589679,1751218238956,-460.0,0.00018369,2]
[368589681,1751218238966,-460.0,0.00018369,2]
[368589683,1751218238976,-460.0,0.00018369,2]
[368589684,1751218238985,-460.0,0.00018369,2]
[368589685,1751218238995,-460.0,0.00018369,2]
[368589687,1751218239005,-460.0,0.00018369,2]
[368589688,1751218239015,-460.0,0.00018369,2]
[368589689,1751218239026,-460.0,0.00018369,2]
[368589690,1751218239036,-460.0,0.00018369,2]
[368589691,1751218239046,-460.0,0.00018369,2]
[368589692,1751218239055,-460.0,0.00018369,2]
[368589693,1751218239065,-460.0,0.00018369,2]
[368589694,1751218239075,-358.75539916,0.00018369,2]
[368589695,1751218239084,-460.0,0.00018369,2]
[368589696,1751218239093,-460.0,0.00018369,2]
[368589697,1751218239102,-629.0,0.00018369,2]
[368589698,1751218239111,-460.0,0.00018369,2]
[368589699,1751218239121,-460.0,0.00018369,2]
[368589700,1751218239131,-460.0,0.00018369,2]
[368589701,1751218239140,-460.0,0.00018369,2]
[368589702,1751218239150,-460.0,0.00018369,2]
[368589703,1751218239159,-463.52287797,0.00018369,2]
[368589704,1751218239168,-460.0,0.00018369,2]
[368589705,1751218239179,-460.0,0.00018369,2]
[368589706,1751218239188,-460.0,0.00018369,2]
[368589707,1751218239198,-460.0,0.00018369,2]
[368589708,1751218239207,-460.0,0.00018369,2]
[368589709,1751218239217,-460.0,0.00018369,2]
[368589710,1751218239226,-460.0,0.00018369,2]
[368589711,1751218239236,-490.6203728,0.00018369,2]
[368589712,1751218239245,-322.40624098,0.00018369,2]
[368589713,1751218239255,-460.0,0.00018369,2]
[368589714,1751218239265,-460.0,0.00018369,2]
[368589715,1751218239274,-460.0,0.00018369,2]
[368589716,1751218239284,-460.0,0.00018369,2]
[368589717,1751218239293,-460.0,0.00018369,2]
[368589718,1751218239303,-460.0,0.00018369,2]
[368589719,1751218239312,-460.0,0.00018369,2]
[368589720,1751218239322,-460.0,0.00018369,2]
[368589721,1751218239331,-460.0,0.00018369,2]
[368589722,1751218239341,-462.7147795,0.00018369,2]
[368589723,1751218239351,-460.0,0.00018369,2]
[368589724,1751218239361,-460.0,0.00018369,2]
[368589725,1751218239370,-460.0,0.00018369,2]
[368589726,1751218239380,-460.0,0.00018369,2]
[368589727,1751218239389,-460.0,0.00018369,2]
[368589728,1751218239400,-240.0,0.00018369,2]
[368589729,1751218239409,-460.0,0.00018369,2]
[368589730,1751218239419,-460.0,0.00018369,2]
[368589731,1751218239428,-460.0,0.00018369,2]
[368589732,1751218239437,-461.86153494,0.00018369,2]
[368589733,1751218239447,-460.0,0.00018369,2]
[368589734,1751218239456,-460.0,0.00018369,2]
[368589735,1751218239465,-460.0,0.00018369,2]
[368589736,1751218239474,-460.0,0.00018369,2]
[368589737,1751218239483,-460.0,0.00018369,2]
[368589738,1751218239491,-460.0,0.00018369,2]
[368589739,1751218239501,-484.05639637,0.00018369,2]
[368589740,1751218239510,-460.0,0.00018369,2]
[368589741,1751218239519,-430.0,0.00018369,2]
[368589742,1751218239529,-460.0,0.00018369,2]
[368589743,1751218239539,-460.0,0.00018369,2]
[368589744,1751218239548,-1110.69,0.00018369,2]
[368589745,1751218239558,-460.0,0.00018369,2]
[368589746,1751218239567,-460.0,0.00018369,2]
[368589747,1751218239577,-460.0,0.00018369,2]
[368589748,1751218239586,-460.0,0.00018369,2]
[368589749,1751218239595,-460.0,0.00018369,2]
[368589750,1751218239605,-460.0,0.00018369,2]
[368589751,1751218239614,-460.0,0.00018369,2]
[368589752,1751218239625,-460.0,0.00018369,2]
[368589753,1751218239638,-452.47968654,0.00018369,2]
[368589754,1751218239647,-460.0,0.00018369,2]
[368589755,1751218239657,-460.0,0.00018369,2]
[368589756,1751218239667,-460.0,0.00018369,2]
[368589757,1751218239676,-463.41329112,0.00018369,2]
[368589758,1751218239685,-460.0,0.00018369,2]
[368589759,1751218239694,-460.0,0.00018369,2]
[368589760,1751218239703,-460.0,0.00018369,2]
[368589761,1751218239712,-460.0,0.00018372,2]
[368589762,1751218239752,-460.0,0.00018372,2]
[368589763,1751218239762,-460.0,0.00018372,2]
[368589764,1751218239771,-460.0,0.00018372,2]
[368589765,1751218239780,-460.0,0.00018372,2]
[368589766,1751218239789,-460.0,0.00018372,2]
[368589767,1751218239798,-460.0,0.00018372,2]
[368589768,1751218239807,-460.0,0.00018372,2]
[368589769,1751218239816,-460.36708761,0.00018372,2]
[368589770,1751218239825,-460.0,0.00018372,2]
[368589771,1751218239834,-500.0,0.00018373,2]
[368589772,1751218239843,-519.61467478,0.00018387,2]
[368589773,1751218239854,-460.0,0.00018387,2]
[368589774,1751218239863,-460.0,0.00018387,2]
[368589775,1751218239872,-460.0,0.00018387,2]
[368589776,1751218239881,-460.0,0.00018387,2]
[368589777,1751218239890,-139.55476585,0.00018387,2]
[368589778,1751218239903,-227.9105978,0.00018387,2]
[368589779,1751218239912,-460.0,0.00018387,2]
[368589780,1751218239921,-412.33803501,0.00018387,2]
[368589781,1751218239930,-408.16621113,0.00018387,2]
[368589782,1751218239939,-460.0,0.00018387,2]
[368589783,1751218239949,-460.0,0.00018387,2]
[368589784,1751218239958,-460.0,0.00018639,2]
[368589785,1751218239967,-2315.0,0.00018639,2]
[368589786,1751218239976,-460.0,0.00018639,2]
[368589787,1751218239985,-460.0,0.00018639,2]
[368589788,1751218239994,-460.0,0.00018639,2]
[368589789,1751218240003,-1492.36717166,0.00018639,2]
[368589790,1751218240014,-883.21282834,0.00018639,2]
[368589791,1751218240024,-460.0,0.00018639,2]
[368589792,1751218240033,-2726.44,0.00018639,2]
[368589793,1751218240041,-460.0,0.00018639,2]
[368589794,1751218240050,-1517.99,0.00018639,2]
[368589795,1751218240060,-460.0,0.00018639,2]
[368589797,1751218240069,-460.0,0.00018639,2]
[368589799,1751218240078,-460.0,0.00018639,2]
[368589801,1751218240087,-1629.69,0.00018639,2]
[368589802,1751218240096,-460.0,0.00018639,2]
[368589803,1751218240105,-460.0,0.00018639,2]
[368589804,1751218240114,-460.0,0.00018639,2]
[368589805,1751218240124,-460.0,0.00018639,2]
[368589806,1751218240133,-460.0,0.0001864,2]
[368589807,1751218240142,-460.0,0.0001864,2]
[368589809,1751218240152,-460.0,0.0001864,2]
[368589811,1751218240162,-460.0,0.0001864,2]
[368589813,1751218240171,-460.0,0.0001864,2]
[368589815,1751218240181,-460.0,0.0001864,2]
[368589817,1751218240191,-496.79,0.0001864,2]
[368589819,1751218240200,-460.0,0.0001864,2]
[368589821,1751218240211,-2227.44,0.0001864,2]
[368589823,1751218240220,-346.05,0.0001864,2]
[368589825,1751218240230,-460.0,0.0001864,2]
[368589827,1751218240240,-489.19,0.0001864,2]
[368589828,1751218240250,-460.0,0.0001864,2]
[368589829,1751218240259,-460.0,0.0001864,2]
[368589830,1751218240268,-460.0,0.0001864,2]
[368589831,1751218240278,-460.0,0.0001864,2]
[368589833,1751218240287,-460.0,0.0001864,2]
[368589835,1751218240297,-460.0,0.0001864,2]
[368589837,1751218240306,-854.41,0.0001864,2]
[368589839,1751218240316,-2646.89,0.0001864,2]
[368589841,1751218240325,-460.0,0.0001864,2]
[368589844,1751218240335,-460.0,0.0001864,2]
[368589846,1751218240344,-460.0,0.0001864,2]
[368589848,1751218240354,-460.0,0.0001864,2]
[368589850,1751218240363,-460.0,0.0001864,2]
[368589852,1751218240373,-460.0,0.0001864,2]
[368589854,1751218240382,-460.0,0.0001864,2]
[368589856,1751218240392,-899.4,0.0001864,2]
[368589857,1751218240402,-460.0,0.0001864,2]
[368589859,1751218240411,-460.0,0.0001864,2]
[368589861,1751218240421,-1098.05,0.0001864,2]
[368589865,1751218240431,-460.0,0.0001864,2]
[368589867,1751218240440,-460.0,0.0001864,2]
[368589869,1751218240449,-460.0,0.0001864,2]
[368589871,1751218240458,-460.0,0.0001864,2]
[368589873,1751218240467,-460.0,0.0001864,2]
[368589875,1751218240477,-460.0,0.00018641,2]
[368589877,1751218240486,-460.0,0.00018641,2]
[368589879,1751218240496,-460.0,0.00018641,2]
[368589881,1751218240506,-450.90477581,0.00018641,2]
[368589883,1751218240517,-460.0,0.00018641,2]
[368589885,1751218240526,-460.0,0.00018641,2]
[368589887,1751218240535,-544.05,0.00018641,2]
[368589889,1751218240543,-460.0,0.00018641,2]
[368589891,1751218240554,-1948.78,0.00018641,2]
[368589893,1751218240563,-460.0,0.00018641,2]
[368589895,1751218240572,-775.45,0.00018641,2]
[368589897,1751218240582,-460.0,0.00018641,2]
[368589899,1751218240591,-460.0,0.00018641,2]
[368589901,1751218240600,-601.63,0.00018641,2]
[368589903,1751218240609,-1353.47,0.00018641,2]
[368589905,1751218240619,-460.0,0.00018641,2]
[368589907,1751218240628,-666.63,0.00018641,2]
[368589909,1751218240639,-460.0,0.00018641,2]
[368589911,1751218240648,-660.18,0.00018641,2]
[368589913,1751218240657,-2286.49,0.00018641,2]
[368589915,1751218240666,-671.44,0.00018641,2]
[368589917,1751218240675,-3666.93,0.00018641,2]
[368589919,1751218240684,-1005.84,0.00018641,2]
[368589921,1751218240694,-813.16,0.00018641,2]
[368589923,1751218240702,-1258.74,0.00018641,2]
[368589925,1751218240712,-1014.82,0.00018641,2]
[368589927,1751218240721,-1083.24,0.00018641,2]
[368589929,1751218240730,-460.0,0.00018642,2]
[368589931,1751218240740,-460.0,0.00018642,2]
[368589933,1751218240749,-460.0,0.00018642,2]
[368589935,1751218240759,-460.0,0.00018642,2]
[368589937,1751218240769,-460.0,0.00018642,2]
[368589939,1751218240779,-533.24,0.00018642,2]
[368589941,1751218240788,-460.0,0.00018642,2]
[368589943,1751218240798,-460.0,0.00018642,2]
[368589945,1751218240807,-460.0,0.00018642,2]
[368589947,1751218240817,-466.79,0.00018642,2]
[368589949,1751218240826,-509.21,0.00018642,2]
[368589951,1751218240835,-460.0,0.00018642,2]
[368589954,1751218240844,-460.0,0.00018642,2]
[368589956,1751218240853,-460.0,0.00018642,2]
[368589959,1751218240863,-460.0,0.00018642,2]
[368589962,1751218240872,-460.0,0.00018642,2]
[368589964,1751218240882,-460.0,0.00018642,2]
[368589966,1751218240891,-460.0,0.00018642,2]
[368589968,1751218240900,-336.16883824,0.00018643,2]
[368589970,1751218240909,-460.0,0.00018643,2]
[368589972,1751218240918,-629.0,0.00018643,2]
[368589974,1751218240928,-460.0,0.00018643,2]
[368589977,1751218240941,-460.0,0.00018643,2]
[368589979,1751218240951,-460.0,0.00018643,2]
[368589981,1751218240960,-460.0,0.00018643,2]
[368589983,1751218240969,-460.0,0.00018643,2]
[368589985,1751218240979,-460.0,0.00018643,2]
[368589987,1751218240988,-332.27431573,0.00018643,2]
[368589988,1751218240998,-460.0,0.00018643,2]
[368589990,1751218241007,-408.09480305,0.00018643,2]
[368589992,1751218241016,-426.49092262,0.00018643,2]
[368589994,1751218241024,-460.0,0.00018643,2]
[368589995,1751218241034,-460.0,0.00018643,2]
[368589996,1751218241043,-460.0,0.00018643,2]
[368589997,1751218241052,-460.0,0.00018643,2]
[368589999,1751218241061,-460.0,0.00018643,2]
[368590001,1751218241070,-1110.69,0.00018643,2]
[368590003,1751218241079,-460.0,0.00018643,2]
[368590005,1751218241089,-460.0,0.00018643,2]
[368590007,1751218241099,-460.0,0.00018646,2]
[368590009,1751218241108,-460.0,0.00018661,2]
[368590011,1751218241117,-201.18190527,0.00018893,2]
[368590012,1751218241126,-500.0,0.00018893,2]
[368590014,1751218241136,-1549.22328721,0.000189,2]
[368590016,1751218241145,-2315.0,0.00018913,2]
[368590018,1751218241155,-460.0,0.00018913,2]
[368590019,1751218241164,-460.0,0.00018913,2]
[368590021,1751218241173,-2375.58,0.00018913,2]
[368590023,1751218241183,-460.0,0.00018913,2]
[368590025,1751218241193,-500.0,0.00018913,2]
[368590027,1751218241202,-500.0,0.00018913,2]
[368590029,1751218241211,-500.0,0.00018913,2]
[368590031,1751218241221,-500.0,0.00018913,2]
[368590033,1751218241231,-193.25127114,0.00018913,2]
[368590035,1751218241240,-194.15238268,0.00018913,2]
[368590037,1751218241249,-2726.44,0.00018913,2]
[368590039,1751218241258,-500.0,0.00018913,2]
[368590041,1751218241268,-460.0,0.00018913,2]
[368590043,1751218241277,-1517.99,0.00018913,2]
[368590045,1751218241287,-460.0,0.00018913,2]
[368590047,1751218241296,-460.0,0.00018913,2]
[368590049,1751218241305,-460.0,0.00018913,2]
[368590051,1751218241315,-617.38691117,0.00018913,2]
[368590053,1751218241324,-1629.69,0.00018913,2]
[368590055,1751218241333,-460.0,0.00018913,2]
[368590056,1751218241342,-460.0,0.00018913,2]
[368590058,1751218241352,-460.0,0.00018913,2]
[368590060,1751218241361,-407.72788844,0.00018914,2]
[368590062,1751218241371,-460.0,0.00018914,2]
[368590064,1751218241380,-198.34,0.00018914,2]
[368590066,1751218241390,-460.0,0.00018914,2]
[368590068,1751218241399,-460.0,0.00018914,2]
[368590070,1751218241409,-496.79,0.00018914,2]
[368590072,1751218241418,-460.0,0.00018914,2]
[368590074,1751218241428,-2227.44,0.00018914,2]
[368590076,1751218241438,-489.19,0.00018914,2]
[368590078,1751218241448,-460.0,0.00018914,2]
[368590080,1751218241457,-460.0,0.00018914,2]
[368590082,1751218241467,-460.0,0.00018914,2]
[368590085,1751218241477,-460.0,0.00018914,2]
[368590087,1751218241487,-460.0,0.00018914,2]
[368590089,1751218241497,-854.41,0.00018914,2]
[368590091,1751218241507,-2646.89,0.00018914,2]
[368590093,1751218241516,-460.0,0.00018914,2]
[368590095,1751218241526,-607.3360667,0.00018914,2]
[368590097,1751218241535,-460.0,0.00018914,2]
[368590099,1751218241545,-460.0,0.00018914,2]
[368590101,1751218241555,-899.4,0.00018914,2]
[368590103,1751218241564,-460.0,0.00018914,2]
[368590104,1751218241574,-460.0,0.00018914,2]
[368590105,1751218241584,-1098.05,0.00018914,2]
[368590106,1751218241593,-460.0,0.00018914,2]
[368590107,1751218241603,-460.0,0.00018914,2]
[368590108,1751218241612,-460.0,0.00018915,2]
[368590109,1751218241622,-460.0,0.00018915,2]
[368590110,1751218241633,-460.0,0.00018915,2]
[368590111,1751218241646,-460.0,0.00018915,2]
[368590112,1751218241656,-460.0,0.00018915,2]
[368590113,1751218241666,-544.05,0.00018915,2]
[368590114,1751218241675,-269.76670765,0.00018915,2]
[368590115,1751218241686,-1948.78,0.00018915,2]
[368590116,1751218241696,-460.0,0.00018915,2]
[368590117,1751218241706,-775.45,0.00018915,2]
[368590118,1751218241716,-460.0,0.00018915,2]
[368590119,1751218241727,-460.0,0.00018915,2]
[368590120,1751218241736,-601.63,0.00018915,2]
[368590121,1751218241746,-1353.47,0.00018915,2]
[368590122,1751218241755,-460.0,0.00018915,2]
[368590123,1751218241765,-666.63,0.00018915,2]
[368590124,1751218241774,-460.0,0.00018915,2]
[368590125,1751218241784,-660.18,0.00018915,2]
[368590126,1751218241794,-2286.49,0.00018915,2]
[368590127,1751218241804,-671.44,0.00018915,2]
[368590128,1751218241813,-3666.93,0.00018915,2]
[368590129,1751218241824,-1005.84,0.00018915,2]
[368590130,1751218241834,-813.16,0.00018915,2]
[368590131,1751218241844,-1258.74,0.00018915,2]
[368590132,1751218241854,-1014.82,0.00018915,2]
[368590133,1751218241863,-1083.24,0.00018915,2]
[368590134,1751218241873,-460.0,0.00018916,2]
[368590135,1751218241883,-460.0,0.00018916,2]
[368590136,1751218241893,-460.0,0.00018916,2]
[368590137,1751218241902,-533.24,0.00018916,2]
[368590138,1751218241912,-460.0,0.00018916,2]
[368590139,1751218241924,-460.0,0.00018916,2]
[368590140,1751218241933,-460.0,0.00018916,2]
[368590141,1751218241942,-466.79,0.00018916,2]
[368590142,1751218241952,-509.21,0.00018916,2]
[368590143,1751218241961,-460.0,0.00018916,2]
[368590144,1751218241971,-460.0,0.00018916,2]
[368590145,1751218241980,-460.0,0.00018916,2]
[368590146,1751218241989,-460.0,0.00018916,2]
[368590147,1751218242000,-460.0,0.00018916,2]
[368590148,1751218242009,-460.0,0.00018916,2]
[368590149,1751218242019,-460.0,0.00018917,2]
[368590150,1751218242028,-629.0,0.00018917,2]
[368590151,1751218242038,-460.0,0.00018917,2]
[368590152,1751218242047,-460.0,0.00018917,2]
[368590153,1751218242056,-460.0,0.00018917,2]
[368590154,1751218242066,-580.93353819,0.00018917,2]
[368590155,1751218242075,-1110.69,0.00018917,2]
[368590156,1751218242084,-460.0,0.00018935,2]
[368590157,1751218242095,-426.24319396,0.00018969,2]
[368590158,1751218242104,-507.15952276,0.00019019,2]
[368590159,1751218242113,-317.17581227,0.00019019,2]
[368590160,1751218242123,-274.88192691,0.00019035,2]
[368590161,1751218242133,-500.0,0.00019035,2]
[368590162,1751218242142,-500.0,0.00019035,2]
[368590163,1751218242153,-500.0,0.00019063,2]
[368590164,1751218242162,-500.0,0.00019091,2]
[368590165,1751218242172,-500.0,0.00019091,2]
[368590166,1751218242182,-500.0,0.00019091,2]
[368590167,1751218242191,-500.0,0.00019123,2]
[368590168,1751218242200,-500.0,0.00019141,2]
[368590169,1751218242210,-500.0,0.00019164,2]
[368590170,1751218242220,-500.0,0.00019172,2]
[368590171,1751218242229,-383.119821,0.00019178,2]
[368590172,1751218242239,-500.0,0.0001918,2]
[368590173,1751218242249,-2315.0,0.00019187,2]
[368590174,1751218242259,-460.0,0.00019187,2]
[368590175,1751218242270,-460.0,0.00019187,2]
[368590176,1751218242280,-2375.58,0.00019187,2]
[368590177,1751218242291,-460.0,0.00019187,2]
[368590178,1751218242301,-2726.44,0.00019187,2]
[368590179,1751218242311,-460.0,0.00019187,2]
[368590180,1751218242320,-1517.99,0.00019187,2]
[368590181,1751218242330,-460.0,0.00019187,2]
[368590182,1751218242340,-460.0,0.00019187,2]
[368590183,1751218242350,-460.0,0.00019187,2]
[368590184,1751218242359,-1629.69,0.00019187,2]
[368590186,1751218242369,-460.0,0.00019187,2]
[368590187,1751218242379,-460.0,0.00019187,2]
[368590189,1751218242389,-460.0,0.00019187,2]
[368590190,1751218242399,-460.0,0.00019188,2]
[368590191,1751218242408,-460.0,0.00019188,2]
[368590192,1751218242417,-496.79,0.00019188,2]
[368590193,1751218242427,-460.0,0.00019188,2]
[368590194,1751218242436,-2227.44,0.00019188,2]
[368590196,1751218242446,-489.19,0.00019188,2]
[368590197,1751218242455,-460.0,0.00019188,2]
[368590198,1751218242465,-460.0,0.00019188,2]
[368590200,1751218242474,-460.0,0.00019188,2]
[368590201,1751218242484,-460.0,0.00019188,2]
[368590202,1751218242494,-854.41,0.00019188,2]
[368590203,1751218242504,-2646.89,0.00019188,2]
[368590204,1751218242514,-460.0,0.00019188,2]
[368590205,1751218242523,-325.73580772,0.00019188,2]
[368590206,1751218242533,-899.4,0.00019188,2]
[368590207,1751218242543,-460.0,0.00019188,2]
[368590208,1751218242553,-460.0,0.00019188,2]
[368590209,1751218242562,-460.0,0.00019188,2]
[368590210,1751218242572,-1098.05,0.00019188,2]
[368590211,1751218242582,-460.0,0.00019188,2]
[368590212,1751218242591,-460.0,0.00019188,2]
[368590213,1751218242600,-318.32956325,0.00019189,2]
[368590214,1751218242611,-460.0,0.00019189,2]
[368590215,1751218242620,-460.0,0.00019189,2]
[368590216,1751218242630,-544.05,0.00019189,2]